[Event "Titled Tuesday Blitz January 03 Late 2023"]
[White "Dias, Joao Batista"]
[Black "Lutz, Igor Oscar"]
[WhiteFideId "2108240"]
[BlackFideId "2110806"]
[WhiteElo "1796"]
[BlackElo "1969"]
[Result "0-1"]
[Round "08"]
[TimeControl "180+2"]
[Date "2023.01.03"]
[WhiteClock "0:01:15"]
[BlackClock "0:00:21"]

1. e4 {[%clk 0:02:53]}  c5 {[%clk 0:02:59]} 2. Nf3 {[%clk 0:02:52]}  e6 {[%clk 0:02:59]} 3. d4 {[%clk 0:02:52]}  cxd4 {[%clk 0:03:00]} 4. Nxd4 {[%clk 0:02:52]}  Nf6 {[%clk 0:03:00]} 5. Bd3 {[%clk 0:02:51]}  d6 {[%clk 0:03:01]} 6. O-O {[%clk 0:02:51]}  Nc6 {[%clk 0:03:01]} 7. c3 {[%clk 0:02:50]}  Be7 {[%clk 0:03:00]} 8. Be3 {[%clk 0:02:50]}  O-O {[%clk 0:02:59]} 9. f3 {[%clk 0:02:49]}  d5 {[%clk 0:02:57]} 10. Nxc6 {[%clk 0:02:44]}  bxc6 {[%clk 0:02:57]} 11. exd5 {[%clk 0:02:45]}  cxd5 {[%clk 0:02:55]} 12. Nd2 {[%clk 0:02:42]}  Qc7 {[%clk 0:02:48]} 13. Rc1 {[%clk 0:02:41]}  Bc5 {[%clk 0:02:47]} 14. Qe2 {[%clk 0:02:38]}  Rb8 {[%clk 0:02:38]} 15. Nb3 {[%clk 0:02:37]}  Bxe3+ {[%clk 0:02:31]} 16. Qxe3 {[%clk 0:02:38]}  a5 {[%clk 0:02:26]} 17. Rf2 {[%clk 0:02:33]}  a4 {[%clk 0:02:21]} 18. Nd4 {[%clk 0:02:33]}  Bd7 {[%clk 0:02:12]} 19. g3 {[%clk 0:02:33]}  Rb6 {[%clk 0:02:02]} 20. Kg2 {[%clk 0:02:30]}  Rfb8 {[%clk 0:02:01]} 21. Rcc2 {[%clk 0:02:31]}  e5 {[%clk 0:01:32]} 22. Nf5 {[%clk 0:02:25]}  e4 {[%clk 0:01:17]} 23. fxe4 {[%clk 0:02:21]}  dxe4 {[%clk 0:01:07]} 24. Bxe4 {[%clk 0:02:16]}  Re8 {[%clk 0:01:05]} 25. Rf4 {[%clk 0:02:09]}  Bxf5 {[%clk 0:00:59]} 26. Rxf5 {[%clk 0:02:06]}  Rxe4 {[%clk 0:00:59]} 27. Qd3 {[%clk 0:01:55]}  Rbe6 {[%clk 0:00:55]} 28. Rff2 {[%clk 0:01:50]}  Ng4 {[%clk 0:00:52]} 29. Rfd2 {[%clk 0:01:47]}  Qc6 {[%clk 0:00:47]} 30. Qd8+ {[%clk 0:01:42]}  Re8 {[%clk 0:00:47]} 31. Kh3 {[%clk 0:01:40]}  Qe6 {[%clk 0:00:39]} 32. Qd6 {[%clk 0:01:32]}  Nf2+ {[%clk 0:00:34]} 33. Kg2 {[%clk 0:01:32]}  Qxd6 {[%clk 0:00:27]} 34. Rxd6 {[%clk 0:01:31]}  Ng4 {[%clk 0:00:25]} 35. h3 {[%clk 0:01:27]}  Ne3+ {[%clk 0:00:26]} 36. Kf3 {[%clk 0:01:25]}  Nxc2 {[%clk 0:00:26]} 37. b3 {[%clk 0:01:22]}  axb3 {[%clk 0:00:25]} 38. axb3 {[%clk 0:01:22]}  g6 {[%clk 0:00:26]} 39. h4 {[%clk 0:01:21]}  Ne1+ {[%clk 0:00:26]} 40. Kf2 {[%clk 0:01:21]}  Re2+ {[%clk 0:00:25]} 41. Kf1 {[%clk 0:01:20]}  Nf3 {[%clk 0:00:25]} 42. Rd3 {[%clk 0:01:19]}  Nh2+ {[%clk 0:00:21]} 43. Kg1 {[%clk 0:01:18]}  Ng4 {[%clk 0:00:21]} 44. b4 {[%clk 0:01:15]}  Rb2 {[%clk 0:00:21]} 0-1


[Site "https://www.chess.com"]

[Event "Titled Tuesday Blitz January 03 Late 2023"]
[White "Xiong, Jeffery"]
[Black "Jacobson, Brandon"]
[WhiteFideId "2047640"]
[BlackFideId "30901561"]
[WhiteElo "2692"]
[BlackElo "2556"]
[Result "1-0"]
[Round "09"]
[TimeControl "180+2"]
[Date "2023.01.03"]
[WhiteClock "0:01:07"]
[BlackClock "0:00:02"]

1. b3 {[%clk 0:02:48]}  Nf6 {[%clk 0:02:59]} 2. Nf3 {[%clk 0:02:47]}  g6 {[%clk 0:02:59]} 3. c4 {[%clk 0:02:46]}  Bg7 {[%clk 0:02:58]} 4. Bb2 {[%clk 0:02:39]}  O-O {[%clk 0:02:58]} 5. g3 {[%clk 0:02:35]}  d6 {[%clk 0:02:55]} 6. Bg2 {[%clk 0:02:35]}  e5 {[%clk 0:02:54]} 7. O-O {[%clk 0:02:35]}  Re8 {[%clk 0:02:48]} 8. Nc3 {[%clk 0:02:35]}  c6 {[%clk 0:02:44]} 9. e4 {[%clk 0:02:25]}  a5 {[%clk 0:02:23]} 10. Re1 {[%clk 0:02:21]}  Na6 {[%clk 0:02:22]} 11. d4 {[%clk 0:02:20]}  exd4 {[%clk 0:02:18]} 12. Nxd4 {[%clk 0:02:21]}  Nc5 {[%clk 0:02:18]} 13. h3 {[%clk 0:02:20]}  Nfd7 {[%clk 0:02:13]} 14. Rb1 {[%clk 0:02:04]}  Ne5 {[%clk 0:02:05]} 15. Re3 {[%clk 0:02:03]}  Qb6 {[%clk 0:01:51]} 16. Nc2 {[%clk 0:01:38]}  Be6 {[%clk 0:00:54]} 17. f4 {[%clk 0:01:34]}  Ned3 {[%clk 0:00:45]} 18. Ba1 {[%clk 0:01:31]}  Nb4 {[%clk 0:00:22]} 19. Kh2 {[%clk 0:01:31]}  Bd7 {[%clk 0:00:09]} 20. Nd4 {[%clk 0:01:13]}  Rad8 {[%clk 0:00:09]} 21. a3 {[%clk 0:01:12]}  Nbd3 {[%clk 0:00:08]} 22. Rxd3 {[%clk 0:01:11]}  Nxd3 {[%clk 0:00:08]} 23. Na4 {[%clk 0:01:11]}  Qc7 {[%clk 0:00:01]} 24. Qxd3 {[%clk 0:01:12]}  c5 {[%clk 0:00:02]} 25. Nb5 {[%clk 0:01:08]}  Bxb5 {[%clk 0:00:03]} 26. cxb5 {[%clk 0:01:09]}  Bxa1 {[%clk 0:00:03]} 27. Rxa1 {[%clk 0:01:10]}  d5 {[%clk 0:00:02]} 28. exd5 {[%clk 0:01:09]}  Re7 {[%clk 0:00:02]} 29. Nc3 {[%clk 0:01:08]}  f5 {[%clk 0:00:02]} 30. Rd1 {[%clk 0:01:09]}  Qd6 {[%clk 0:00:02]} 31. b6 {[%clk 0:01:07]}  Rde8 {[%clk 0:00:02]} 32. Nb5 {[%clk 0:01:07]}  Qxb6 {[%clk 0:00:02]} 33. d6 {[%clk 0:01:07]}  Re2 {[%clk 0:00:02]} 34. d7 {[%clk 0:01:07]} 1-0


[Site "https://www.chess.com"]

[Event "Titled Tuesday Blitz January 03 Late 2023"]
[White "Dardha, Daniel"]
[Black "Carlsen, Magnus"]
[WhiteFideId "240990"]
[BlackFideId "1503014"]
[WhiteElo "2631"]
[BlackElo "2853"]
[Result "1-0"]
[Round "09"]
[TimeControl "180+2"]
[Date "2023.01.03"]
[WhiteClock "0:00:03"]
[BlackClock "0:00:06"]

1. d4 {[%clk 0:03:00]}  Nf6 {[%clk 0:02:54]} 2. Bg5 {[%clk 0:03:01]}  g6 {[%clk 0:02:50]} 3. Bxf6 {[%clk 0:02:58]}  exf6 {[%clk 0:02:51]} 4. e3 {[%clk 0:02:58]}  f5 {[%clk 0:02:47]} 5. c4 {[%clk 0:02:53]}  d5 {[%clk 0:02:38]} 6. Nc3 {[%clk 0:02:49]}  dxc4 {[%clk 0:02:36]} 7. Bxc4 {[%clk 0:02:50]}  Bd6 {[%clk 0:02:36]} 8. Nf3 {[%clk 0:02:47]}  Nd7 {[%clk 0:02:35]} 9. O-O {[%clk 0:02:41]}  O-O {[%clk 0:02:35]} 10. a3 {[%clk 0:02:32]}  a6 {[%clk 0:02:35]} 11. b4 {[%clk 0:02:32]}  Nf6 {[%clk 0:02:34]} 12. Qc2 {[%clk 0:02:25]}  Qe7 {[%clk 0:02:30]} 13. Nd5 {[%clk 0:02:13]}  Nxd5 {[%clk 0:02:28]} 14. Bxd5 {[%clk 0:02:14]}  a5 {[%clk 0:02:20]} 15. Qb3 {[%clk 0:01:39]}  c6 {[%clk 0:01:58]} 16. Bc4 {[%clk 0:01:39]}  axb4 {[%clk 0:01:23]} 17. axb4 {[%clk 0:01:40]}  Rxa1 {[%clk 0:01:24]} 18. Rxa1 {[%clk 0:01:41]}  Bxb4 {[%clk 0:01:24]} 19. Ra8 {[%clk 0:01:35]}  Bd6 {[%clk 0:01:18]} 20. h3 {[%clk 0:01:27]}  Kg7 {[%clk 0:01:18]} 21. Qb2 {[%clk 0:01:23]}  b5 {[%clk 0:01:12]} 22. Bd3 {[%clk 0:01:08]}  Qf6 {[%clk 0:01:00]} 23. Ne5 {[%clk 0:01:04]}  Bxe5 {[%clk 0:00:55]} 24. dxe5 {[%clk 0:01:05]}  Qe7 {[%clk 0:00:48]} 25. Qc3 {[%clk 0:01:02]}  Be6 {[%clk 0:00:39]} 26. Rxf8 {[%clk 0:00:58]}  Qxf8 {[%clk 0:00:40]} 27. Qxc6 {[%clk 0:00:58]}  b4 {[%clk 0:00:40]} 28. Bc4 {[%clk 0:00:54]}  Qe7 {[%clk 0:00:28]} 29. Bxe6 {[%clk 0:00:47]}  Qxe6 {[%clk 0:00:28]} 30. Qb5 {[%clk 0:00:47]}  Qe7 {[%clk 0:00:21]} 31. f4 {[%clk 0:00:36]}  h5 {[%clk 0:00:21]} 32. Kh2 {[%clk 0:00:32]}  h4 {[%clk 0:00:21]} 33. Qb6 {[%clk 0:00:29]}  Kh7 {[%clk 0:00:20]} 34. Qb5 {[%clk 0:00:29]}  Kg7 {[%clk 0:00:11]} 35. Qb6 {[%clk 0:00:28]}  g5 {[%clk 0:00:12]} 36. fxg5 {[%clk 0:00:19]}  Qxe5+ {[%clk 0:00:11]} 37. Kh1 {[%clk 0:00:19]}  Qa1+ {[%clk 0:00:11]} 38. Kh2 {[%clk 0:00:19]}  Qe5+ {[%clk 0:00:10]} 39. Kh1 {[%clk 0:00:19]}  Qc3 {[%clk 0:00:11]} 40. Qh6+ {[%clk 0:00:07]}  Kg8 {[%clk 0:00:11]} 41. Qxh4 {[%clk 0:00:04]}  b3 {[%clk 0:00:06]} 42. g6 {[%clk 0:00:05]}  b2 {[%clk 0:00:06]} 43. Qh7+ {[%clk 0:00:03]} 1-0


[Site "https://www.chess.com"]

[Event "Titled Tuesday Blitz January 03 Late 2023"]
[White "Zierk, Steven"]
[Black "Bluebaum, Matthias"]
[WhiteFideId "2034255"]
[BlackFideId "24651516"]
[WhiteElo "2488"]
[BlackElo "2669"]
[Result "0-1"]
[Round "09"]
[TimeControl "180+2"]
[Date "2023.01.03"]
[WhiteClock "0:00:03"]
[BlackClock "0:00:06"]

1. e4 {[%clk 0:03:00]}  e6 {[%clk 0:03:00]} 2. d4 {[%clk 0:03:00]}  d5 {[%clk 0:03:00]} 3. Nc3 {[%clk 0:03:01]}  Nf6 {[%clk 0:03:01]} 4. Bg5 {[%clk 0:03:00]}  dxe4 {[%clk 0:03:01]} 5. Nxe4 {[%clk 0:03:00]}  Be7 {[%clk 0:03:02]} 6. Bxf6 {[%clk 0:02:59]}  gxf6 {[%clk 0:03:03]} 7. g3 {[%clk 0:02:59]}  Nc6 {[%clk 0:02:53]} 8. Nf3 {[%clk 0:02:52]}  e5 {[%clk 0:02:53]} 9. dxe5 {[%clk 0:02:38]}  fxe5 {[%clk 0:02:42]} 10. Qxd8+ {[%clk 0:02:38]}  Bxd8 {[%clk 0:02:41]} 11. Bb5 {[%clk 0:02:39]}  f6 {[%clk 0:02:39]} 12. O-O-O {[%clk 0:02:33]}  Be7 {[%clk 0:02:31]} 13. Nc3 {[%clk 0:02:15]}  a6 {[%clk 0:02:19]} 14. Bxc6+ {[%clk 0:01:54]}  bxc6 {[%clk 0:02:19]} 15. Nh4 {[%clk 0:01:53]}  Kf7 {[%clk 0:02:08]} 16. Rhe1 {[%clk 0:01:52]}  Rb8 {[%clk 0:02:00]} 17. Re4 {[%clk 0:01:50]}  Bd6 {[%clk 0:01:44]} 18. Rc4 {[%clk 0:01:46]}  Rb6 {[%clk 0:01:28]} 19. Ne4 {[%clk 0:01:38]}  Be6 {[%clk 0:01:18]} 20. Ra4 {[%clk 0:01:32]}  Be7 {[%clk 0:01:09]} 21. Rd3 {[%clk 0:01:17]}  f5 {[%clk 0:00:34]} 22. Rf3 {[%clk 0:01:10]}  Bxh4 {[%clk 0:00:34]} 23. gxh4 {[%clk 0:01:11]}  Ke7 {[%clk 0:00:34]} 24. Ng5 {[%clk 0:01:00]}  Rg8 {[%clk 0:00:31]} 25. Re3 {[%clk 0:00:42]}  h6 {[%clk 0:00:30]} 26. Nf3 {[%clk 0:00:42]}  e4 {[%clk 0:00:29]} 27. Nd4 {[%clk 0:00:41]}  Rg1+ {[%clk 0:00:28]} 28. Kd2 {[%clk 0:00:41]}  c5 {[%clk 0:00:22]} 29. Nxe6 {[%clk 0:00:38]}  Kxe6 {[%clk 0:00:23]} 30. Rg3 {[%clk 0:00:36]}  Rh1 {[%clk 0:00:19]} 31. Rxa6 {[%clk 0:00:23]}  Rxh2 {[%clk 0:00:16]} 32. Rg6+ {[%clk 0:00:19]}  Ke5 {[%clk 0:00:16]} 33. Raxb6 {[%clk 0:00:17]}  cxb6 {[%clk 0:00:17]} 34. Ke1 {[%clk 0:00:18]}  b5 {[%clk 0:00:08]} 35. Rxh6 {[%clk 0:00:16]}  f4 {[%clk 0:00:09]} 36. Rh5+ {[%clk 0:00:15]}  Kd4 {[%clk 0:00:10]} 37. c3+ {[%clk 0:00:15]}  Kc4 {[%clk 0:00:10]} 38. b3+ {[%clk 0:00:15]}  Kxc3 {[%clk 0:00:08]} 39. Rxc5+ {[%clk 0:00:15]}  Kd4 {[%clk 0:00:06]} 40. Rxb5 {[%clk 0:00:14]}  Rh1+ {[%clk 0:00:07]} 41. Kd2 {[%clk 0:00:14]}  Rh2 {[%clk 0:00:05]} 42. Rb4+ {[%clk 0:00:14]}  Ke5 {[%clk 0:00:05]} 43. Rb5+ {[%clk 0:00:15]}  Kd4 {[%clk 0:00:05]} 44. Rb4+ {[%clk 0:00:15]}  Ke5 {[%clk 0:00:06]} 45. Ke1 {[%clk 0:00:15]}  Rh1+ {[%clk 0:00:06]} 46. Ke2 {[%clk 0:00:15]}  f3+ {[%clk 0:00:06]} 47. Kd2 {[%clk 0:00:15]}  Rf1 {[%clk 0:00:06]} 48. Rb8 {[%clk 0:00:05]}  Rxf2+ {[%clk 0:00:06]} 49. Kc3 {[%clk 0:00:05]}  Rxa2 {[%clk 0:00:06]} 50. Rf8 {[%clk 0:00:04]}  f2 {[%clk 0:00:07]} 51. h5 {[%clk 0:00:04]}  e3 {[%clk 0:00:07]} 52. h6 {[%clk 0:00:03]}  e2 {[%clk 0:00:06]} 0-1


[Site "https://www.chess.com"]

[Event "Titled Tuesday Blitz January 03 Late 2023"]
[White "Oparin, Grigoriy"]
[Black "Mosadeghpour, Masoud"]
[WhiteFideId "24125890"]
[BlackFideId "12519278"]
[WhiteElo "2667"]
[BlackElo "2472"]
[Result "0-1"]
[Round "09"]
[TimeControl "180+2"]
[Date "2023.01.03"]
[WhiteClock "0:00:23"]
[BlackClock "0:01:36"]

1. b3 {[%clk 0:02:57]}  Nf6 {[%clk 0:02:58]} 2. Bb2 {[%clk 0:02:57]}  g6 {[%clk 0:02:59]} 3. g3 {[%clk 0:02:56]}  Bg7 {[%clk 0:02:59]} 4. c4 {[%clk 0:02:57]}  O-O {[%clk 0:03:00]} 5. Bg2 {[%clk 0:02:58]}  d5 {[%clk 0:03:00]} 6. cxd5 {[%clk 0:02:57]}  Nxd5 {[%clk 0:03:01]} 7. Bxg7 {[%clk 0:02:55]}  Kxg7 {[%clk 0:03:02]} 8. Qc1 {[%clk 0:02:53]}  Nc6 {[%clk 0:02:57]} 9. Nc3 {[%clk 0:02:53]}  Be6 {[%clk 0:02:52]} 10. Nf3 {[%clk 0:02:52]}  h6 {[%clk 0:02:51]} 11. O-O {[%clk 0:02:51]}  Qd7 {[%clk 0:02:50]} 12. Qb2 {[%clk 0:02:49]}  Nf6 {[%clk 0:02:49]} 13. Ne4 {[%clk 0:02:46]}  Bh3 {[%clk 0:02:48]} 14. Nc5 {[%clk 0:02:44]}  Qf5 {[%clk 0:02:43]} 15. Nxb7 {[%clk 0:02:40]}  Bxg2 {[%clk 0:02:43]} 16. Kxg2 {[%clk 0:02:40]}  Qb5 {[%clk 0:02:44]} 17. Rac1 {[%clk 0:02:21]}  Qxb7 {[%clk 0:02:44]} 18. Qc3 {[%clk 0:02:22]}  Nb4 {[%clk 0:02:43]} 19. Qxc7 {[%clk 0:02:22]}  Qxc7 {[%clk 0:02:41]} 20. Rxc7 {[%clk 0:02:23]}  Nfd5 {[%clk 0:02:42]} 21. Rc5 {[%clk 0:02:14]}  Rfc8 {[%clk 0:02:40]} 22. Rfc1 {[%clk 0:02:13]}  Nb6 {[%clk 0:02:36]} 23. a3 {[%clk 0:02:05]}  Na6 {[%clk 0:02:36]} 24. R5c3 {[%clk 0:02:01]}  Rxc3 {[%clk 0:02:36]} 25. dxc3 {[%clk 0:02:02]}  Rc8 {[%clk 0:02:34]} 26. c4 {[%clk 0:01:58]}  Kf6 {[%clk 0:02:08]} 27. Nd4 {[%clk 0:01:51]}  Nc5 {[%clk 0:02:03]} 28. b4 {[%clk 0:01:50]}  Ne6 {[%clk 0:02:01]} 29. Nxe6 {[%clk 0:01:45]}  Kxe6 {[%clk 0:02:02]} 30. c5 {[%clk 0:01:45]}  Nd5 {[%clk 0:02:00]} 31. Rd1 {[%clk 0:01:35]}  f5 {[%clk 0:01:59]} 32. h4 {[%clk 0:01:30]}  a5 {[%clk 0:01:58]} 33. Rd4 {[%clk 0:01:21]}  axb4 {[%clk 0:01:56]} 34. axb4 {[%clk 0:01:22]}  Rb8 {[%clk 0:01:57]} 35. e4 {[%clk 0:01:23]}  fxe4 {[%clk 0:01:55]} 36. Rxe4+ {[%clk 0:01:23]}  Kf5 {[%clk 0:01:51]} 37. Re2 {[%clk 0:00:51]}  Rxb4 {[%clk 0:01:49]} 38. Rc2 {[%clk 0:00:52]}  Rb7 {[%clk 0:01:47]} 39. c6 {[%clk 0:00:47]}  Rc7 {[%clk 0:01:48]} 40. Rc4 {[%clk 0:00:46]}  e6 {[%clk 0:01:47]} 41. h5 {[%clk 0:00:41]}  g5 {[%clk 0:01:45]} 42. Kh3 {[%clk 0:00:33]}  Ne7 {[%clk 0:01:44]} 43. f4 {[%clk 0:00:34]}  Rxc6 {[%clk 0:01:43]} 44. Ra4 {[%clk 0:00:27]}  Rc3 {[%clk 0:01:41]} 45. Ra5+ {[%clk 0:00:26]}  Kf6 {[%clk 0:01:41]} 46. fxg5+ {[%clk 0:00:26]}  hxg5 {[%clk 0:01:42]} 47. h6 {[%clk 0:00:24]}  Kg6 {[%clk 0:01:38]} 48. h7 {[%clk 0:00:24]}  Kxh7 {[%clk 0:01:38]} 49. Rxg5 {[%clk 0:00:23]}  Nf5 {[%clk 0:01:38]} 50. Kg2 {[%clk 0:00:20]}  Kh6 {[%clk 0:01:36]} 51. Rg8 {[%clk 0:00:21]}  Rxg3+ {[%clk 0:01:34]} 52. Rxg3 {[%clk 0:00:20]}  Nxg3 {[%clk 0:01:35]} 53. Kxg3 {[%clk 0:00:21]}  Kg5 {[%clk 0:01:35]} 54. Kf3 {[%clk 0:00:22]}  Kf5 {[%clk 0:01:36]} 55. Ke3 {[%clk 0:00:23]}  Ke5 {[%clk 0:01:36]} 0-1


[Site "https://www.chess.com"]

[Event "Titled Tuesday Blitz January 03 Late 2023"]
[White "Deac, Bogdan-Daniel"]
[Black "Holt, Conrad"]
[WhiteFideId "1226380"]
[BlackFideId "2034387"]
[WhiteElo "2700"]
[BlackElo "2540"]
[Result "1-0"]
[Round "09"]
[TimeControl "180+2"]
[Date "2023.01.03"]
[WhiteClock "0:00:10"]
[BlackClock "0:00:07"]

1. d4 {[%clk 0:02:55]}  d5 {[%clk 0:03:00]} 2. Bf4 {[%clk 0:02:53]}  c5 {[%clk 0:02:59]} 3. e3 {[%clk 0:02:53]}  Nc6 {[%clk 0:03:00]} 4. c3 {[%clk 0:02:53]}  Nf6 {[%clk 0:02:57]} 5. Nd2 {[%clk 0:02:53]}  Bf5 {[%clk 0:02:55]} 6. Qb3 {[%clk 0:02:51]}  Qc8 {[%clk 0:02:53]} 7. dxc5 {[%clk 0:02:49]}  e5 {[%clk 0:02:39]} 8. Bg5 {[%clk 0:02:49]}  Be6 {[%clk 0:02:37]} 9. Bxf6 {[%clk 0:02:45]}  gxf6 {[%clk 0:02:36]} 10. Qa3 {[%clk 0:02:36]}  b6 {[%clk 0:02:34]} 11. Nb3 {[%clk 0:02:29]}  a5 {[%clk 0:02:19]} 12. Qa4 {[%clk 0:02:15]}  bxc5 {[%clk 0:02:18]} 13. Bb5 {[%clk 0:02:14]}  Bd7 {[%clk 0:02:17]} 14. c4 {[%clk 0:02:11]}  Nb4 {[%clk 0:02:11]} 15. Rd1 {[%clk 0:02:01]}  d4 {[%clk 0:02:11]} 16. a3 {[%clk 0:01:56]}  Bxb5 {[%clk 0:02:03]} 17. cxb5 {[%clk 0:01:25]}  c4 {[%clk 0:01:27]} 18. Nc1 {[%clk 0:00:52]}  d3 {[%clk 0:01:20]} 19. Nf3 {[%clk 0:00:45]}  Rg8 {[%clk 0:01:12]} 20. O-O {[%clk 0:00:33]}  Rxg2+ {[%clk 0:01:05]} 21. Kh1 {[%clk 0:00:26]}  e4 {[%clk 0:00:42]} 22. b6+ {[%clk 0:00:24]}  Kd8 {[%clk 0:00:38]} 23. b7 {[%clk 0:00:18]}  Qxb7 {[%clk 0:00:38]} 24. Kxg2 {[%clk 0:00:18]}  exf3+ {[%clk 0:00:38]} 25. Kh1 {[%clk 0:00:19]}  Bd6 {[%clk 0:00:33]} 26. Nxd3 {[%clk 0:00:12]}  Ke7 {[%clk 0:00:18]} 27. Ne1 {[%clk 0:00:08]}  Qe4 {[%clk 0:00:09]} 28. Rxd6 {[%clk 0:00:07]}  Kxd6 {[%clk 0:00:08]} 29. axb4 {[%clk 0:00:07]}  axb4 {[%clk 0:00:07]} 30. Qxb4+ {[%clk 0:00:06]}  Ke6 {[%clk 0:00:07]} 31. Qb6+ {[%clk 0:00:06]}  Kf5 {[%clk 0:00:07]} 32. Qc5+ {[%clk 0:00:05]}  Ke6 {[%clk 0:00:06]} 33. Rg1 {[%clk 0:00:05]}  Ra1 {[%clk 0:00:06]} 34. Qb6+ {[%clk 0:00:04]}  Kf5 {[%clk 0:00:06]} 35. Qb5+ {[%clk 0:00:04]}  Ke6 {[%clk 0:00:06]} 36. Qb4 {[%clk 0:00:05]}  Rd1 {[%clk 0:00:05]} 37. b3 {[%clk 0:00:04]}  Rc1 {[%clk 0:00:02]} 38. bxc4 {[%clk 0:00:04]}  Rxc4 {[%clk 0:00:03]} 39. Qb6+ {[%clk 0:00:04]}  Kf5 {[%clk 0:00:03]} 40. Qb5+ {[%clk 0:00:04]}  Ke6 {[%clk 0:00:03]} 41. Qe8+ {[%clk 0:00:04]}  Kf5 {[%clk 0:00:01]} 42. Qxe4+ {[%clk 0:00:04]}  Kxe4 {[%clk 0:00:01]} 43. Rg4+ {[%clk 0:00:05]}  Kd5 {[%clk 0:00:02]} 44. Rxc4 {[%clk 0:00:06]}  Kxc4 {[%clk 0:00:03]} 45. Nxf3 {[%clk 0:00:06]}  Kd3 {[%clk 0:00:04]} 46. Kg2 {[%clk 0:00:07]}  Ke4 {[%clk 0:00:04]} 47. Kg3 {[%clk 0:00:07]}  Kf5 {[%clk 0:00:04]} 48. Nd4+ {[%clk 0:00:07]}  Ke4 {[%clk 0:00:05]} 49. h4 {[%clk 0:00:07]}  h5 {[%clk 0:00:04]} 50. Ne2 {[%clk 0:00:08]}  Kd3 {[%clk 0:00:03]} 51. Nf4+ {[%clk 0:00:09]}  Ke4 {[%clk 0:00:03]} 52. Nxh5 {[%clk 0:00:10]}  Kf5 {[%clk 0:00:04]} 53. Nf4 {[%clk 0:00:10]}  Ke4 {[%clk 0:00:04]} 54. h5 {[%clk 0:00:11]}  Kf5 {[%clk 0:00:04]} 55. h6 {[%clk 0:00:11]}  Kg5 {[%clk 0:00:05]} 56. h7 {[%clk 0:00:12]}  f5 {[%clk 0:00:06]} 57. h8=Q {[%clk 0:00:10]}  f6 {[%clk 0:00:07]} 58. Qh4# {[%clk 0:00:10]} 1-0


[Site "https://www.chess.com"]

[Event "Titled Tuesday Blitz January 03 Late 2023"]
[White "Jobava, Baadur"]
[Black "Kobalia, Mikhail"]
[WhiteFideId "13601520"]
[BlackFideId "4119150"]
[WhiteElo "2578"]
[BlackElo "2578"]
[Result "1-0"]
[Round "09"]
[TimeControl "180+2"]
[Date "2023.01.03"]
[WhiteClock "0:00:57"]
[BlackClock "0:00:20"]

1. d4 {[%clk 0:02:57]}  d5 {[%clk 0:02:59]} 2. c4 {[%clk 0:02:56]}  c6 {[%clk 0:02:59]} 3. Nf3 {[%clk 0:02:57]}  Nf6 {[%clk 0:02:58]} 4. Nc3 {[%clk 0:02:57]}  e6 {[%clk 0:02:58]} 5. cxd5 {[%clk 0:02:57]}  exd5 {[%clk 0:02:57]} 6. Bf4 {[%clk 0:02:57]}  Bd6 {[%clk 0:02:56]} 7. g3 {[%clk 0:02:57]}  O-O {[%clk 0:02:38]} 8. e3 {[%clk 0:02:58]}  Bg4 {[%clk 0:02:36]} 9. h3 {[%clk 0:02:57]}  Bxf3 {[%clk 0:02:32]} 10. Qxf3 {[%clk 0:02:58]}  Bb4 {[%clk 0:02:32]} 11. Bd3 {[%clk 0:02:57]}  Nbd7 {[%clk 0:02:31]} 12. O-O {[%clk 0:02:54]}  Re8 {[%clk 0:02:32]} 13. Kg2 {[%clk 0:02:52]}  Qe7 {[%clk 0:02:31]} 14. h4 {[%clk 0:02:48]}  Nb6 {[%clk 0:02:30]} 15. Ne2 {[%clk 0:02:46]}  Ne4 {[%clk 0:02:28]} 16. Rfd1 {[%clk 0:02:43]}  Nc4 {[%clk 0:02:24]} 17. a3 {[%clk 0:02:34]}  Ba5 {[%clk 0:02:20]} 18. b4 {[%clk 0:02:25]}  Bb6 {[%clk 0:02:17]} 19. Ra2 {[%clk 0:02:22]}  a5 {[%clk 0:02:14]} 20. bxa5 {[%clk 0:01:54]}  Bxa5 {[%clk 0:02:12]} 21. Bg5 {[%clk 0:01:43]}  Nxg5 {[%clk 0:02:02]} 22. hxg5 {[%clk 0:01:44]}  Qxg5 {[%clk 0:02:02]} 23. Bxh7+ {[%clk 0:01:43]}  Kf8 {[%clk 0:01:57]} 24. Nf4 {[%clk 0:01:42]}  Ke7 {[%clk 0:01:38]} 25. Bd3 {[%clk 0:01:40]}  Nd6 {[%clk 0:01:35]} 26. Raa1 {[%clk 0:01:17]}  Rh8 {[%clk 0:01:34]} 27. Rh1 {[%clk 0:01:14]}  Bc3 {[%clk 0:01:33]} 28. Rac1 {[%clk 0:01:12]}  Rxh1 {[%clk 0:01:17]} 29. Rxh1 {[%clk 0:01:13]}  Rxa3 {[%clk 0:01:14]} 30. Rh5 {[%clk 0:01:13]}  Qf6 {[%clk 0:01:14]} 31. Rxd5 {[%clk 0:01:13]}  Bb4 {[%clk 0:01:07]} 32. Qg4 {[%clk 0:01:04]}  Rxd3 {[%clk 0:01:03]} 33. Re5+ {[%clk 0:01:04]}  Kd8 {[%clk 0:00:54]} 34. Nxd3 {[%clk 0:01:04]}  Ba3 {[%clk 0:00:53]} 35. Ra5 {[%clk 0:01:03]}  Nc4 {[%clk 0:00:34]} 36. Ne5 {[%clk 0:01:03]}  Nxe5 {[%clk 0:00:24]} 37. dxe5 {[%clk 0:01:04]}  Qe7 {[%clk 0:00:23]} 38. Qxg7 {[%clk 0:01:03]}  Kc7 {[%clk 0:00:20]} 39. Qf6 {[%clk 0:01:01]}  Qb4 {[%clk 0:00:20]} 40. Qxf7+ {[%clk 0:01:00]}  Kb6 {[%clk 0:00:20]} 41. Rxa3 {[%clk 0:00:59]}  Qxa3 {[%clk 0:00:20]} 42. e6 {[%clk 0:00:59]}  Qb4 {[%clk 0:00:20]} 43. e7 {[%clk 0:00:57]}  Qe4+ {[%clk 0:00:20]} 44. Kh2 {[%clk 0:00:57]} 1-0


[Site "https://www.chess.com"]

[Event "Titled Tuesday Blitz January 03 Late 2023"]
[White "Ibarra Jerez, Jose Carlos"]
[Black "Avila Pavas, Santiago"]
[WhiteFideId "2226332"]
[BlackFideId "4437128"]
[WhiteElo "2563"]
[BlackElo "2522"]
[Result "1-0"]
[Round "09"]
[TimeControl "180+2"]
[Date "2023.01.03"]
[WhiteClock "0:01:04"]
[BlackClock "0:01:40"]

1. e4 {[%clk 0:02:56]}  Nf6 {[%clk 0:03:00]} 2. e5 {[%clk 0:02:56]}  Nd5 {[%clk 0:03:01]} 3. c4 {[%clk 0:02:56]}  Nb6 {[%clk 0:03:01]} 4. d4 {[%clk 0:02:57]}  d6 {[%clk 0:03:01]} 5. exd6 {[%clk 0:02:57]}  cxd6 {[%clk 0:03:02]} 6. Nc3 {[%clk 0:02:57]}  g6 {[%clk 0:03:03]} 7. a4 {[%clk 0:02:58]}  a5 {[%clk 0:03:00]} 8. c5 {[%clk 0:02:58]}  dxc5 {[%clk 0:02:59]} 9. Bb5+ {[%clk 0:02:57]}  N6d7 {[%clk 0:02:51]} 10. Bf4 {[%clk 0:02:56]}  Bg7 {[%clk 0:02:44]} 11. Nd5 {[%clk 0:02:56]}  O-O {[%clk 0:02:45]} 12. Bc7 {[%clk 0:02:54]}  Qe8 {[%clk 0:02:45]} 13. Nb6 {[%clk 0:02:55]}  Ra7 {[%clk 0:02:38]} 14. Bxb8 {[%clk 0:02:55]}  Ra6 {[%clk 0:02:32]} 15. dxc5 {[%clk 0:02:14]}  Qd8 {[%clk 0:02:20]} 16. Bxa6 {[%clk 0:01:45]}  bxa6 {[%clk 0:02:21]} 17. Bf4 {[%clk 0:01:35]}  Bxb2 {[%clk 0:02:17]} 18. Rb1 {[%clk 0:01:33]}  Bc3+ {[%clk 0:02:17]} 19. Bd2 {[%clk 0:01:27]}  Bd4 {[%clk 0:02:16]} 20. Bh6 {[%clk 0:01:18]}  Bxc5 {[%clk 0:01:59]} 21. Nxd7 {[%clk 0:01:14]}  Bxd7 {[%clk 0:01:50]} 22. Bxf8 {[%clk 0:01:14]}  Kxf8 {[%clk 0:01:38]} 23. Nf3 {[%clk 0:01:07]}  Bb4+ {[%clk 0:01:38]} 24. Rxb4 {[%clk 0:01:06]}  axb4 {[%clk 0:01:39]} 25. Ne5 {[%clk 0:01:05]}  Ke8 {[%clk 0:01:40]} 26. Qxd7+ {[%clk 0:01:03]}  Qxd7 {[%clk 0:01:40]} 27. Nxd7 {[%clk 0:01:04]}  Kxd7 {[%clk 0:01:41]} 28. Kd2 {[%clk 0:01:03]}  Kc6 {[%clk 0:01:40]} 29. Kd3 {[%clk 0:01:03]}  Kb6 {[%clk 0:01:39]} 30. Kc4 {[%clk 0:01:03]}  Ka5 {[%clk 0:01:40]} 31. Kb3 {[%clk 0:01:04]} 1-0


[Site "https://www.chess.com"]